fUST/lending_fUST_20250428
["ID","MTS","AMOUNT","RATE_DAILY","PERIOD"]
[359207383,1745813441944,-500.0,0.00032876,2]
[359207384,1745813441954,-500.0,0.00032876,2]
[359207385,1745813441963,-503.53482278,0.00032876,2]
[359207387,1745813441975,-400.0,0.00032876,2]
[359207388,1745813441984,-507.52353076,0.00032876,2]
[359207389,1745813441994,-400.0,0.00032876,2]
[359207390,1745813442003,-400.0,0.00032876,2]
[359207391,1745813442012,-500.0,0.00032876,2]
[359207392,1745813442022,-513.20210099,0.00032876,2]
[359207393,1745813442031,-177.02277986,0.00032876,2]
[359207394,1745813442041,-500.61746032,0.00032876,2]
[359207395,1745813442050,-400.0,0.00032876,2]
[359207396,1745813442060,-500.65869499,0.00032876,2]
[359207397,1745813442070,-400.0,0.00032876,2]
[359207398,1745813442079,-504.89348043,0.00032876,2]
[359207399,1745813442088,-400.0,0.00032876,2]
[359207400,1745813442097,-509.7227974,0.00032876,2]
[359207401,1745813442107,-501.77834901,0.00032876,2]
[359207402,1745813442116,-503.58353085,0.00032876,2]
[359207403,1745813442125,-400.0,0.00032876,2]
[359207404,1745813442134,-500.0,0.00032876,2]
[359207405,1745813442145,-400.0,0.00032876,2]
[359207406,1745813442154,-510.77824011,0.00032876,2]
[359207407,1745813442163,-400.0,0.00032876,2]
[359207408,1745813442173,-400.0,0.00032876,2]
[359207409,1745813442183,-478.42,0.00032876,2]
[359207410,1745813442193,-400.0,0.00032876,2]
[359207411,1745813442203,-501.78054525,0.00032876,2]
[359207412,1745813442213,-400.0,0.00032876,2]
[359207413,1745813442222,-400.0,0.00032876,2]
[359207414,1745813442232,-501.81889242,0.00032876,2]
[359207415,1745813442241,-400.0,0.00032876,2]
[359207416,1745813442251,-400.0,0.00032876,2]
[359207417,1745813442261,-500.0,0.00032876,2]
[359207418,1745813442270,-501.12244459,0.00032876,2]
[359207419,1745813442279,-400.0,0.00032876,2]
[359207420,1745813442289,-528.51919263,0.00032876,2]
[359207421,1745813442298,-507.44292795,0.00032876,2]
[359207422,1745813442307,-400.0,0.00032876,2]
[359207423,1745813442316,-500.0,0.00032876,2]
[359207424,1745813442325,-505.05410818,0.00032876,2]
[359207425,1745813442335,-400.0,0.00032876,2]
[359207426,1745813442344,-506.32327178,0.00032876,2]
[359207427,1745813442353,-400.0,0.00032876,2]
[359207428,1745813442362,-502.49020601,0.00032876,2]
[359207429,1745813442371,-502.87661664,0.00032876,2]
[359207430,1745813442380,-502.36920662,0.00032876,2]
[359207431,1745813442390,-526.73867108,0.00032876,2]
[359207432,1745813442401,-522.11019759,0.00032876,2]
[359207433,1745813442410,-504.83516788,0.00032876,2]
[359207434,1745813442420,-500.8172124,0.00032876,2]
[359207435,1745813442429,-501.28931654,0.00032876,2]
[359207436,1745813442438,-501.35516668,0.00032876,2]
[359207437,1745813442448,-400.0,0.00032876,2]
[359207438,1745813442457,-400.0,0.00032876,2]
[359207439,1745813442466,-502.05659956,0.00032876,2]
[359207440,1745813442476,-505.56423455,0.00032876,2]
[359207441,1745813442485,-400.0,0.00032876,2]
[359207442,1745813442494,-234.26806116,0.00032876,2]
[359207443,1745813442503,-510.11854601,0.00032876,2]
[359207444,1745813442514,-502.19487844,0.00032876,2]
[359207445,1745813442523,-400.0,0.00032876,2]
[359207446,1745813442533,-400.0,0.00032876,2]
[359207447,1745813442544,-400.0,0.00032876,2]
[359207448,1745813442553,-502.19443607,0.00032876,2]
[359207450,1745813442562,-400.0,0.00032876,2]
[359207451,1745813442571,-504.60611171,0.00032876,2]
[359207452,1745813442580,-400.0,0.00032876,2]
[359207453,1745813442589,-501.81525559,0.00032876,2]
[359207454,1745813442599,-400.0,0.00032876,2]
[359207455,1745813442608,-400.0,0.00032876,2]
[359207456,1745813442618,-400.0,0.00032876,2]
[359207457,1745813442627,-503.57838018,0.00032876,2]
[359207458,1745813442636,-825.53,0.00032876,2]
[359207459,1745813442647,-501.33658885,0.00032876,2]
[359207460,1745813442656,-503.11006667,0.00032876,2]
[359207461,1745813442665,-500.89962027,0.00032876,2]
[359207462,1745813442674,-512.10060766,0.00032876,2]
[359207463,1745813442683,-400.0,0.00032876,2]
[359207464,1745813442692,-400.0,0.00032876,2]
[359207465,1745813442701,-503.97031951,0.00032876,2]
[359207466,1745813442711,-500.0,0.00032876,2]
[359207467,1745813442719,-503.57040033,0.00032876,2]
[359207468,1745813442728,-504.41010605,0.00032876,2]
[359207469,1745813442737,-790.37,0.00032876,2]
[359207470,1745813442746,-501.03268452,0.00032876,2]
[359207471,1745813442757,-500.84822675,0.00032876,2]
[359207472,1745813442766,-504.22622955,0.00032876,2]
[359207473,1745813442775,-501.70310547,0.00032876,2]
[359207474,1745813442784,-400.0,0.00032876,2]
[359207475,1745813442794,-501.66551755,0.00032876,2]
[359207476,1745813442803,-503.3407881,0.00032876,2]
[359207477,1745813442812,-400.0,0.00032876,2]
[359207479,1745813442821,-500.94657754,0.00032876,2]
[359207480,1745813442831,-506.00865109,0.00032876,2]
[359207481,1745813442840,-502.17151183,0.00032876,2]
[359207482,1745813442849,-400.0,0.00032876,2]
[359207483,1745813442858,-400.0,0.00032876,2]
[359207484,1745813442867,-501.81552387,0.00032876,2]
[359207485,1745813442876,-400.0,0.00032876,2]
[359207486,1745813442885,-229.88089163,0.00032876,2]
[359207487,1745813442897,-1001.84758603,0.00032876,2]
[359207488,1745813442906,-756.1,0.00032876,2]
[359207489,1745813442915,-503.22763173,0.00032876,2]
[359207490,1745813442924,-400.0,0.00032876,2]
[359207491,1745813442937,-400.0,0.00032876,2]
[359207492,1745813442945,-501.44471475,0.00032876,2]
[359207493,1745813442954,-400.0,0.00032876,2]
[359207494,1745813442961,-400.0,0.00032876,2]
[359207495,1745813442969,-400.0,0.00032876,2]
[359207496,1745813442978,-503.58112969,0.00032876,2]
[359207497,1745813442988,-500.55617725,0.00032876,2]
[359207498,1745813442998,-400.0,0.00032876,2]
[359207499,1745813443008,-503.56616025,0.00032876,2]
[359207500,1745813443018,-400.0,0.00032876,2]
[359207501,1745813443027,-507.92307578,0.00032876,2]
[359207502,1745813443037,-506.04579739,0.00032876,2]
[359207504,1745813443046,-400.0,0.00032876,2]
[359207505,1745813443056,-501.23047423,0.00032876,2]
[359207506,1745813443066,-500.69407687,0.00032876,2]
[359207507,1745813443075,-400.0,0.00032876,2]
[359207508,1745813443085,-400.0,0.00032876,2]
[359207509,1745813443094,-396.25303923,0.00032876,2]
[359207510,1745813443103,-507.45577683,0.00032876,2]
[359207511,1745813443113,-502.48659279,0.00032876,2]
[359207512,1745813443125,-504.24012019,0.00032876,2]
[359207513,1745813443135,-400.0,0.00032876,2]
[359207514,1745813443146,-500.0,0.00032876,2]
[359207515,1745813443155,-500.88045846,0.00032876,2]
[359207516,1745813443166,-400.0,0.00032876,2]
[359207517,1745813443177,-519.3986597,0.00032876,2]
[359207518,1745813443187,-400.0,0.00032876,2]
[359207519,1745813443196,-500.0,0.00032876,2]
[359207520,1745813443206,-400.0,0.00032876,2]
[359207521,1745813443217,-400.0,0.00032876,2]
[359207522,1745813443227,-400.0,0.00032876,2]
[359207523,1745813443237,-500.94164558,0.00032876,2]
[359207524,1745813443247,-500.0,0.00032876,2]
[359207525,1745813443256,-400.0,0.00032876,2]
[359207526,1745813443266,-500.0,0.00032876,2]
[359207527,1745813443275,-505.01873516,0.00032876,2]
[359207528,1745813443285,-500.0,0.00032876,2]
[359207529,1745813443295,-505.4163048,0.00032876,2]
[359207531,1745813443306,-500.0,0.00032876,2]
[359207533,1745813443316,-400.0,0.00032876,2]
[359207534,1745813443327,-500.0,0.00032876,2]
[359207536,1745813443336,-500.0,0.00032876,2]
[359207537,1745813443347,-503.71591861,0.00032876,2]
[359207538,1745813443356,-400.0,0.00032876,2]
[359207539,1745813443365,-500.0,0.00032876,2]
[359207541,1745813443375,-500.0,0.00032876,2]
[359207542,1745813443383,-500.0,0.00032876,2]
[359207544,1745813443393,-500.0,0.00032876,2]
[359207545,1745813443402,-400.0,0.00032876,2]
[359207546,1745813443411,-500.0,0.00032876,2]
[359207547,1745813443421,-500.0,0.00032876,2]
[359207548,1745813443431,-485.80910276,0.00032876,2]
[359207550,1745813443440,-500.61057409,0.00032876,2]
[359207551,1745813443449,-400.0,0.00032876,2]
[359207552,1745813443458,-500.0,0.00032876,2]
[359207553,1745813443467,-500.77387043,0.00032876,2]
[359207554,1745813443477,-511.23218006,0.00032876,2]
[359207555,1745813443486,-500.93150851,0.00032876,2]
[359207556,1745813443495,-400.0,0.00032876,2]
[359207557,1745813443505,-400.0,0.00032876,2]
[359207558,1745813443514,-400.0,0.00032876,2]
[359207559,1745813443523,-280.28709489,0.00032876,2]
[359207560,1745813443533,-500.0,0.00032877,5]
[359207561,1745813443542,-151.93121283,0.00032877,2]
[359207562,1745813443550,-152.60538426,0.00032877,2]
[359207563,1745813443558,-500.0,0.00032877,2]
[359207564,1745813443566,-500.0,0.00032877,2]
[359207565,1745813443574,-500.0,0.00032877,2]
[359207566,1745813443582,-500.0,0.00032877,2]
[359207567,1745813443591,-500.0,0.00032877,2]
[359207568,1745813443600,-500.0,0.00032877,2]
[359207569,1745813443609,-500.0,0.00032877,2]
[359207571,1745813443619,-500.0,0.00032877,2]
[359207573,1745813443629,-649.95185766,0.00032877,2]
[359207575,1745813443638,-151.0,0.00032877,2]
[359207576,1745813443647,-151.0,0.00032877,2]
[359207577,1745813443657,-198.0,0.00032877,2]
[359207578,1745813443666,-152.17976104,0.00032877,2]
[359207579,1745813443676,-151.0,0.00032877,2]
[359207581,1745813443686,-152.96393014,0.00032877,2]
[359207583,1745813443695,-843.41,0.000329,7]
[359207585,1745813443704,-153.526235,0.000329,14]
[359207586,1745813443713,-532.25,0.00033018,2]
[359207588,1745813443723,-532.25,0.00033138,2]
[359207589,1745813443732,-532.25,0.00033138,2]
[359207590,1745813443741,-532.25,0.00033138,2]
[359207591,1745813443750,-532.25,0.00033138,2]
[359207592,1745813443759,-532.42811492,0.00033138,2]
[359207594,1745813443768,-654.5,0.00033139,2]
[359207596,1745813443777,-151.0,0.00033139,14]
[359207598,1745813443787,-845.571226,0.00033139,14]
[359207599,1745813443796,-845.571226,0.00033139,14]
[359207600,1745813443805,-984.39557,0.00033139,4]
[359207601,1745813443814,-283.00899742,0.00033139,2]
[359207603,1745813443823,-654.5,0.0003314,2]
[359207605,1745813443832,-654.5,0.0003314,2]
[359207606,1745813443841,-654.5,0.0003314,2]
[359207607,1745813443851,-654.5,0.0003314,2]
[359207608,1745813443860,-288.720739,0.0003314,14]
[359207609,1745813443869,-288.720739,0.0003314,14]
[359207611,1745813443878,-151.0,0.0003314,14]
[359207612,1745813443888,-366.979068,0.0003314,14]
[359207613,1745813443901,-654.5,0.00033148,2]
[359207614,1745813443911,-151.0,0.00033149,14]
[359207616,1745813443920,-151.0,0.00033149,14]
[359207617,1745813443929,-151.0,0.00033149,14]
[359207618,1745813443939,-240.085829,0.00033149,14]
[359207619,1745813443949,-400.0,0.0003315,2]
[359207620,1745813443958,-172.21956263,0.0003315,2]
[359207622,1745813443968,-500.0,0.0003315,2]
[359207623,1745813443978,-491.94129054,0.0003315,2]
[359207624,1745813443987,-400.0,0.0003315,2]
[359207625,1745813443997,-400.0,0.0003315,2]
[359207626,1745813444006,-247.48738282,0.0003315,2]
[359207627,1745813444015,-400.0,0.0003315,2]
[359207628,1745813444025,-427.35771909,0.0003315,2]
[359207629,1745813444034,-214.2433774,0.0003315,2]
[359207630,1745813444044,-231.635219,0.0003315,2]
[359207631,1745813444053,-408.69373305,0.0003315,2]
[359207633,1745813444063,-235.91813459,0.0003315,2]
[359207634,1745813444073,-405.53839287,0.0003315,2]
[359207635,1745813444082,-407.26246948,0.0003315,2]
[359207637,1745813444195,-500.0,0.0003315,2]
[359207638,1745813444205,-393.96363073,0.0003315,2]
[359207639,1745813444215,-400.0,0.0003315,2]
[359207640,1745813444224,-400.0,0.0003315,2]
[359207641,1745813444233,-400.0,0.0003315,2]
[359207642,1745813444243,-496.19108008,0.0003315,2]
[359207643,1745813444252,-500.0,0.0003315,2]
[359207644,1745813444262,-346.13,0.0003315,2]
[359207645,1745813444271,-400.0,0.0003315,2]
[359207646,1745813444280,-400.0,0.0003315,2]
[359207647,1745813444289,-500.0,0.0003315,2]
[359207648,1745813444298,-400.0,0.0003315,2]
[359207649,1745813444308,-400.0,0.0003315,2]
[359207650,1745813444317,-573.01,0.0003315,2]
[359207652,1745813444326,-400.0,0.0003315,2]
[359207653,1745813444336,-400.0,0.0003315,2]
[359207654,1745813444347,-200.0,0.0003315,2]
[359207655,1745813444356,-411.29782468,0.0003315,2]
[359207657,1745813444366,-304.36851456,0.0003315,2]
[359207658,1745813444375,-408.98630651,0.0003315,2]
[359207659,1745813444385,-400.0,0.0003315,2]
[359207660,1745813444394,-400.0,0.0003315,2]
[359207661,1745813444403,-151.0,0.0003315,14]
[359207663,1745813444412,-305.39989117,0.0003315,2]
[359207664,1745813444422,-400.0,0.0003315,2]
[359207665,1745813444431,-400.0,0.0003315,2]
[359207666,1745813444441,-191.17107248,0.0003315,2]
[359207667,1745813444452,-151.0,0.0003315,2]
[359207668,1745813444461,-152.031868,0.0003315,14]
[359207669,1745813444470,-400.0,0.0003315,2]
[359207670,1745813444479,-400.0,0.0003315,2]
[359207671,1745813444488,-303.63723068,0.0003315,2]
[359207672,1745813444497,-151.0,0.0003315,14]
[359207673,1745813444506,-400.0,0.0003315,2]
[359207674,1745813444515,-400.0,0.0003315,2]
[359207675,1745813444525,-152.429156,0.0003315,2]
[359207676,1745813444534,-400.0,0.0003315,2]
[359207677,1745813444544,-152.429156,0.0003315,2]
[359207678,1745813444554,-400.0,0.0003315,2]
[359207679,1745813444563,-231.109626,0.0003315,14]
[359207680,1745813444573,-151.0,0.0003315,14]
[359207681,1745813444583,-400.0,0.0003315,2]
[359207683,1745813444591,-300.0,0.0003315,2]
[359207684,1745813444601,-400.0,0.0003315,2]
[359207685,1745813444611,-151.0,0.0003315,14]
[359207686,1745813444621,-400.0,0.0003315,2]
[359207687,1745813444631,-400.0,0.0003315,2]
[359207688,1745813444640,-300.0,0.0003315,2]
[359207689,1745813444651,-400.0,0.0003315,2]
[359207690,1745813444661,-152.809064,0.0003315,14]
[359207691,1745813444670,-151.0,0.0003315,14]
[359207692,1745813444680,-408.28236072,0.0003315,2]
[359207693,1745813444692,-400.0,0.0003315,2]
[359207694,1745813444703,-400.0,0.0003315,2]
[359207695,1745813444713,-400.0,0.0003315,2]
[359207696,1745813444723,-400.0,0.0003315,2]
[359207697,1745813444734,-400.0,0.0003315,2]
[359207698,1745813444744,-400.0,0.0003315,2]
[359207699,1745813444754,-400.0,0.0003315,2]
[359207700,1745813444763,-400.0,0.0003315,2]
[359207701,1745813444772,-400.0,0.0003315,2]
[359207702,1745813444782,-262.31535455,0.0003315,2]
[359207703,1745813444791,-400.0,0.0003315,2]
[359207704,1745813444801,-400.0,0.0003315,2]
[359207705,1745813444813,-306.76655876,0.0003315,2]
[359207706,1745813444822,-400.0,0.0003315,2]
[359207707,1745813444831,-400.0,0.0003315,2]
[359207708,1745813444841,-202.93261801,0.0003315,2]
[359207709,1745813444852,-311.62193101,0.0003315,2]
[359207711,1745813444861,-400.0,0.0003315,2]
[359207712,1745813444870,-405.63242251,0.0003315,2]
[359207713,1745813444879,-400.0,0.0003315,2]
[359207714,1745813444888,-400.0,0.0003315,2]
[359207715,1745813444902,-314.02184597,0.0003315,2]
[359207716,1745813444911,-500.0,0.0003315,2]
[359207717,1745813444922,-309.91446015,0.0003315,2]
[359207718,1745813444932,-400.0,0.0003315,2]
[359207719,1745813444943,-400.0,0.0003315,2]
[359207720,1745813444953,-400.0,0.0003315,2]
[359207721,1745813444963,-400.0,0.0003315,2]
[359207722,1745813444973,-400.0,0.0003315,2]
[359207723,1745813444982,-400.0,0.0003315,2]
[359207724,1745813444991,-400.0,0.0003315,2]
[359207725,1745813445001,-400.0,0.0003315,2]
[359207726,1745813445010,-400.0,0.0003315,2]
[359207727,1745813445020,-400.0,0.0003315,2]
[359207728,1745813445029,-400.0,0.0003315,2]
[359207729,1745813445039,-400.0,0.0003315,2]
[359207730,1745813445048,-400.0,0.0003315,2]
[359207731,1745813445057,-400.0,0.0003315,2]
[359207732,1745813445067,-400.0,0.0003315,2]
[359207734,1745813445076,-400.0,0.0003315,2]
[359207735,1745813445085,-400.0,0.0003315,2]
[359207736,1745813445095,-400.0,0.0003315,2]
[359207737,1745813445104,-400.0,0.0003315,2]
[359207738,1745813445114,-400.0,0.0003315,2]
[359207740,1745813445123,-400.0,0.0003315,2]
[359207741,1745813445133,-400.0,0.0003315,2]
[359207742,1745813445142,-400.0,0.0003315,2]
[359207743,1745813445152,-400.0,0.0003315,2]
[359207745,1745813445162,-400.0,0.0003315,2]
[359207746,1745813445171,-400.0,0.0003315,2]
[359207747,1745813445181,-400.0,0.0003315,2]
[359207748,1745813445190,-310.96750939,0.0003315,2]
[359207749,1745813445199,-400.0,0.0003315,2]
[359207750,1745813445208,-400.0,0.0003315,2]
[359207751,1745813445218,-400.0,0.0003315,2]
[359207752,1745813445227,-400.0,0.0003315,2]
[359207753,1745813445236,-881.22,0.0003315,2]
[359207754,1745813445246,-400.0,0.0003315,2]
[359207755,1745813445255,-400.0,0.0003315,2]
[359207756,1745813445265,-400.0,0.0003315,2]
[359207757,1745813445274,-400.0,0.0003315,2]
[359207758,1745813445283,-400.0,0.0003315,2]
[359207759,1745813445292,-203.50708509,0.0003315,2]
[359207760,1745813445302,-400.0,0.0003315,2]
[359207761,1745813445312,-400.0,0.0003315,2]
[359207762,1745813445322,-400.0,0.0003315,2]
[359207763,1745813445331,-400.0,0.0003315,2]
[359207764,1745813445340,-400.0,0.0003315,2]
[359207765,1745813445350,-400.0,0.0003315,2]
[359207766,1745813445359,-400.0,0.0003315,2]
[359207768,1745813445368,-400.0,0.0003315,2]
[359207769,1745813445378,-400.0,0.0003315,2]
[359207770,1745813445387,-400.0,0.0003315,2]
[359207771,1745813445397,-400.0,0.0003315,2]
[359207772,1745813445406,-400.0,0.0003315,2]
[359207773,1745813445416,-478.42,0.0003315,2]
[359207774,1745813445426,-157.82306898,0.0003315,2]
[359207775,1745813445435,-400.0,0.0003315,2]
[359207776,1745813445445,-400.0,0.0003315,2]
[359207777,1745813445455,-400.0,0.0003315,2]
[359207778,1745813445464,-215.35749028,0.0003315,2]
[359207779,1745813445474,-400.0,0.0003315,2]
[359207780,1745813445483,-400.0,0.0003315,2]
[359207781,1745813445493,-400.0,0.0003315,2]
[359207782,1745813445503,-400.0,0.0003315,2]
[359207783,1745813445512,-500.0,0.0003315,2]
[359207784,1745813445522,-400.0,0.0003315,2]
[359207785,1745813445533,-400.0,0.0003315,2]
[359207786,1745813445542,-400.0,0.0003315,2]
[359207787,1745813445551,-400.0,0.0003315,2]
[359207788,1745813445561,-400.0,0.0003315,2]
[359207790,1745813445570,-400.0,0.0003315,2]
[359207791,1745813445580,-400.0,0.0003315,2]
[359207792,1745813445589,-400.0,0.0003315,2]
[359207793,1745813445599,-400.0,0.0003315,2]
[359207794,1745813445609,-400.0,0.0003315,2]
[359207796,1745813445619,-825.53,0.0003315,2]
[359207797,1745813445627,-400.0,0.0003315,2]
[359207798,1745813445637,-400.0,0.0003315,2]
[359207799,1745813445647,-790.37,0.0003315,2]
[359207800,1745813445657,-400.0,0.0003315,2]
[359207802,1745813445667,-400.0,0.0003315,2]
[359207803,1745813445676,-400.0,0.0003315,2]
[359207804,1745813445685,-400.0,0.0003315,2]
[359207805,1745813445695,-400.0,0.0003315,2]
[359207806,1745813445704,-756.1,0.0003315,2]
[359207807,1745813445714,-400.0,0.0003315,2]
[359207808,1745813445724,-400.0,0.0003315,2]
[359207810,1745813445734,-400.0,0.0003315,2]
[359207811,1745813445744,-400.0,0.0003315,2]
[359207812,1745813445753,-400.0,0.0003315,2]
[359207813,1745813445762,-400.0,0.0003315,2]
[359207814,1745813445772,-400.0,0.0003315,2]
[359207815,1745813445782,-400.0,0.0003315,2]
[359207816,1745813445791,-400.0,0.0003315,2]
[359207817,1745813445801,-400.0,0.0003315,2]
[359207818,1745813445810,-400.0,0.0003315,2]
[359207820,1745813445820,-400.0,0.0003315,2]
[359207821,1745813445829,-400.0,0.0003315,2]
[359207822,1745813445839,-400.0,0.0003315,2]
[359207823,1745813445848,-400.0,0.0003315,2]
[359207825,1745813445857,-400.0,0.0003315,2]
[359207826,1745813445867,-400.0,0.0003315,2]
[359207827,1745813445876,-400.0,0.0003315,2]
[359207828,1745813445885,-400.0,0.0003315,2]
[359207829,1745813445899,-400.0,0.0003315,2]
[359207830,1745813445908,-509.70691755,0.0003315,2]
[359207832,1745813445917,-400.0,0.0003315,2]
[359207833,1745813445926,-400.0,0.0003315,2]
[359207834,1745813445937,-400.0,0.0003315,2]
[359207835,1745813445947,-1276.013867,0.00033165,2]
[359207836,1745813445957,-500.0,0.00033173,5]
[359207837,1745813445966,-500.77378023,0.00033173,5]
[359207838,1745813445977,-500.0,0.00033173,5]
[359207839,1745813445987,-500.0,0.00033173,5]
[359207840,1745813445996,-500.0,0.00033173,3]
[359207841,1745813446007,-500.0,0.00033173,5]
[359207842,1745813446019,-500.0,0.00033173,5]
[359207843,1745813446029,-300.0,0.00033173,5]
[359207844,1745813446039,-157.171474,0.0003318,14]
[359207846,1745813446049,-151.0,0.0003318,14]
[359207847,1745813446058,-151.0,0.0003318,14]
[359207849,1745813446067,-156.29393,0.0003318,14]
[359207851,1745813446077,-845.571226,0.0003318,14]
[359207852,1745813446086,-845.571226,0.0003318,14]
[359207854,1745813446095,-654.5,0.00033188,2]
[359207855,1745813446105,-654.5,0.00033189,2]
[359207856,1745813446115,-654.5,0.00033189,2]
[359207857,1745813446125,-654.5,0.00033189,2]
[359207858,1745813446134,-654.5,0.00033189,2]
[359207859,1745813446144,-654.5,0.00033189,2]
[359207860,1745813446155,-654.5,0.00033189,2]
[359207861,1745813446164,-654.5,0.00033189,2]
[359207862,1745813446174,-654.5,0.00033189,2]
[359207863,1745813446183,-654.5,0.00033189,2]
[359207864,1745813446193,-654.6519865,0.00033189,2]
[359207865,1745813446202,-769.76,0.00033199,2]
[359207866,1745813446211,-769.76,0.00033199,2]
[359207868,1745813446220,-769.76,0.00033199,2]
[359207869,1745813446230,-769.76,0.00033199,2]
[359207870,1745813446239,-769.76,0.00033199,2]
[359207871,1745813446248,-769.76,0.00033199,2]
[359207872,1745813446257,-769.76,0.00033199,2]
[359207873,1745813446267,-769.76,0.00033199,2]
[359207875,1745813446276,-113229.24348221,0.000332,30]
[359207876,1745813446306,-4501.31570885,0.000332,30]
[359207877,1745813446318,-982.79729437,0.000332,30]
[359207879,1745813446333,-5846.93351457,0.000332,30]
[359207880,1745813446343,-233.18,0.000332,30]
[359207881,1745813446352,-152.955138,0.000332,14]
[359207882,1745813446362,-151.0,0.000332,14]
[359207883,1745813446371,-151.0,0.000332,14]
[359207884,1745813446380,-845.571226,0.000332,14]
[359207885,1745813446390,-845.571226,0.000332,14]
[359207886,1745813446401,-151.0,0.000332,14]
[359207887,1745813446410,-151.0,0.000332,2]
[359207888,1745813446419,-154.960846,0.000332,14]
[359207889,1745813446429,-152.429156,0.000332,2]
[359207890,1745813446438,-152.429156,0.000332,2]
[359207891,1745813446448,-175.740247,0.000332,14]
[359207892,1745813446458,-151.0,0.000332,14]
[359207893,1745813446468,-151.0,0.000332,14]
[359207894,1745813446477,-262.671617,0.000332,14]
[359207895,1745813446487,-151.0,0.000332,14]
[359207897,1745813446496,-151.0,0.000332,14]
[359207898,1745813446506,-288.720739,0.000332,14]
[359207900,1745813446515,-288.720739,0.000332,14]
[359207902,1745813446525,-151.0,0.000332,14]
[359207904,1745813446534,-366.979068,0.000332,14]
[359207906,1745813446544,-152.05092574,0.00033342,2]
[359207908,1745813446553,-332.85,0.00033424,2]
[359207910,1745813446562,-151.0,0.00033424,2]
[359207912,1745813446571,-151.0,0.00033424,2]
[359207914,1745813446581,-198.43019449,0.00033424,2]
[359207916,1745813446590,-400.0,0.00033424,2]
[359207918,1745813446599,-400.0,0.00033424,2]
[359207920,1745813446608,-400.0,0.00033424,2]
[359207921,1745813446619,-400.0,0.00033424,2]
[359207922,1745813446630,-400.0,0.00033424,2]
[359207923,1745813446640,-573.01,0.00033424,2]
[359207924,1745813446650,-400.0,0.00033424,2]
[359207925,1745813446658,-280.24,0.00033424,2]
[359207926,1745813446668,-400.0,0.00033424,2]
[359207927,1745813446677,-412.46912316,0.00033424,2]
[359207928,1745813446685,-400.0,0.00033424,2]
[359207929,1745813446695,-505.16018732,0.00033424,2]
[359207930,1745813446704,-400.0,0.00033424,2]
[359207931,1745813446714,-410.4463115,0.00033424,2]
[359207932,1745813446727,-474.03579262,0.00033424,2]
[359207934,1745813446736,-400.0,0.00033424,2]
[359207935,1745813446746,-354.61,0.00033424,2]
[359207936,1745813446756,-370.0328081,0.00033424,2]
[359207937,1745813446765,-400.0,0.00033424,2]
[359207938,1745813446774,-400.0,0.00033424,2]
[359207939,1745813446784,-463.52298245,0.00033424,2]
[359207940,1745813446793,-400.0,0.00033424,2]
[359207941,1745813446802,-400.0,0.00033424,2]
[359207942,1745813446812,-400.0,0.00033424,2]
[359207943,1745813446823,-400.0,0.00033424,2]
[359207944,1745813446833,-400.0,0.00033424,2]
[359207945,1745813446843,-400.0,0.00033424,2]